bitfinex-derivatives/quotes_BTCF0:USTF0_20250422
["timestamp","ask_amount","ask_price","bid_price","bid_amount"]
[1745317180730,0.1988201,88628.0,88627.0,0.5421414]
[1745317180931,0.1988201,88628.0,88627.0,0.1813414]
[1745317181131,0.1988201,88628.0,88627.0,0.5421414]
[1745317181730,0.1988201,88628.0,88627.0,0.1813414]
[1745317181928,0.1988201,88628.0,88627.0,0.5421414]
[1745317182639,0.1788201,88628.0,88627.0,0.5421414]
[1745317186540,0.1888201,88628.0,88627.0,0.5421414]
[1745317188836,0.1888201,88628.0,88627.0,0.1813414]
[1745317189039,0.1888201,88628.0,88627.0,0.5421414]
[1745317189639,0.1788201,88628.0,88627.0,0.5421414]
[1745317192641,0.1888201,88628.0,88627.0,0.5421414]
[1745317194336,0.1887401,88628.0,88627.0,0.5421414]
[1745317195142,0.1887401,88628.0,88627.0,0.5411414]
[1745317195347,0.1887401,88628.0,88627.0,0.5381414]
[1745317195651,0.1887401,88628.0,88627.0,0.5401414]
[1745317195838,0.1877401,88628.0,88627.0,0.5401414]
[1745317196042,0.1887401,88628.0,88627.0,0.5401414]
[1745317197839,0.1877401,88628.0,88627.0,0.5371414]
[1745317198138,0.1887401,88628.0,88627.0,0.5391414]
[1745317199945,0.1887401,88628.0,88627.0,0.1138414]
[1745317200540,0.1887401,88628.0,88627.0,0.1118414]
[1745317200840,0.1887401,88628.0,88627.0,0.1138414]
[1745317201645,0.1887401,88628.0,88627.0,0.1148414]
[1745317202240,0.1887401,88628.0,88627.0,0.1128414]
[1745317202444,0.1887401,88628.0,88627.0,0.1138414]
[1745317202841,0.1887401,88628.0,88627.0,0.1118414]
[1745317203043,0.1887401,88628.0,88627.0,0.1128414]
[1745317204948,0.1692784,88622.0,88621.0,0.1692723]
[1745317205248,0.1892784,88622.0,88621.0,0.1692723]
[1745317205449,0.3586184,88622.0,88621.0,0.1692723]
[1745317206252,0.3586184,88622.0,88621.0,0.1722723]
[1745317206550,0.3596184,88622.0,88621.0,0.1752723]
[1745317206749,0.3596184,88622.0,88621.0,0.1732723]
[1745317207553,0.7204184,88622.0,88621.0,1e-07]
[1745317207941,0.7194184,88622.0,88621.0,1e-07]
[1745317208142,0.7204184,88622.0,88621.0,0.0020001]
[1745317208342,0.7204184,88622.0,88621.0,0.002]
[1745317208846,0.1128516,88619.0,88618.0,0.1128524]
[1745317209049,0.1328516,88619.0,88618.0,0.1128524]
[1745317209241,0.1328516,88619.0,88616.0,0.1692819]
[1745317209242,0.1128542,88617.0,88616.0,0.1692819]
[1745317209437,0.1328542,88617.0,88616.0,0.1692819]
[1745317209649,0.112858,88615.0,88614.0,0.1128573]
[1745317209947,0.122858,88615.0,88614.0,0.1128573]
[1745317210157,0.1128656,88608.0,88607.0,0.00016928]
[1745317210343,0.1128733,88602.0,88601.0,0.11456751]
[1745317210542,0.1228733,88602.0,88601.0,0.11456751]
[1745317211238,0.1853733,88602.0,88601.0,0.11456751]
[1745317212353,0.1863733,88602.0,88601.0,0.11756751]
[1745317216353,0.5471733,88602.0,88601.0,0.11756751]
[1745317221355,0.5471733,88602.0,88601.0,0.11456751]
[1745317222757,0.6187333,88602.0,88601.0,0.11456751]
[1745317222959,0.6197333,88602.0,88601.0,0.11456751]
[1745317224453,0.6187333,88602.0,88601.0,0.11456751]
[1745317224660,0.6197333,88602.0,88601.0,0.11456751]
[1745317225663,0.6187333,88602.0,88601.0,0.11456751]
[1745317225863,0.6197333,88602.0,88601.0,0.11456751]
[1745317229063,0.8117333,88602.0,88601.0,0.11456751]
[1745317229365,0.4509333,88602.0,88601.0,0.11456751]
[1745317231155,0.1128784,88598.0,88597.0,0.0304]
[1745317231356,0.1328784,88598.0,88597.0,0.0304]
[1745317231553,0.1328784,88598.0,88597.0,0.1432796]
[1745317231763,0.1328784,88598.0,88597.0,0.0304]
[1745317231964,0.1953784,88598.0,88597.0,0.0304]
[1745317232160,0.3873784,88598.0,88597.0,0.0304]
[1745317232466,0.3560784,88598.0,88597.0,0.1432796]
[1745317232666,0.3560784,88598.0,88597.0,0.1738796]
[1745317232865,0.4287184,88598.0,88597.0,0.1738796]
[1745317233163,0.2367184,88598.0,88597.0,0.1738796]
[1745317233568,0.2367184,88598.0,88597.0,0.1748796]
[1745317234764,0.2367184,88598.0,88597.0,0.1738796]
[1745317235165,0.2357184,88598.0,88597.0,0.1738796]
[1745317235355,0.2367184,88598.0,88597.0,0.1738796]
[1745317240460,0.2357184,88598.0,88597.0,0.1738796]
[1745317240660,0.2367184,88598.0,88597.0,0.1738796]
[1745317241267,0.4277184,88598.0,88597.0,0.1738796]
[1745317241464,0.4287184,88598.0,88597.0,0.1738796]
[1745317243174,0.2367184,88598.0,88597.0,0.1738796]
[1745317245170,0.4287184,88598.0,88597.0,0.1738796]
[1745317246177,0.2367184,88598.0,88597.0,0.1738796]
[1745317250678,0.2668184,88598.0,88597.0,0.1738796]
[1745317251177,0.4588184,88598.0,88597.0,0.1738796]
[1745317251679,0.4588184,88598.0,88597.0,0.1434796]
[1745317253777,0.4588184,88598.0,88597.0,0.1740796]
[1745317254382,0.2668184,88598.0,88597.0,0.1740796]
[1745317255180,0.4588184,88598.0,88597.0,0.1740796]
[1745317259590,0.4588184,88598.0,88597.0,0.1434796]
[1745317260580,0.4578184,88598.0,88597.0,0.1434796]
[1745317260786,0.4588184,88598.0,88597.0,0.1434796]
[1745317261788,0.4588184,88598.0,88597.0,0.1747796]
[1745317262484,0.3862584,88598.0,88597.0,0.3647796]
[1745317262685,0.00010801,88603.0,88602.0,0.1128733]
[1745317262887,0.00016928,88610.0,88609.0,0.1128643]
[1745317263183,0.00016928,88610.0,88609.0,0.4048643]
[1745317263683,0.00016928,88610.0,88609.0,0.4038643]
[1745317264074,0.00024928,88610.0,88609.0,0.2118643]
[1745317264274,0.00024928,88610.0,88609.0,0.2138643]
[1745317264489,0.00124928,88610.0,88609.0,0.2138643]
[1745317265384,0.01124928,88610.0,88609.0,0.2138643]
[1745317266788,0.00124928,88610.0,88609.0,0.2138643]
[1745317267986,0.01124928,88610.0,88609.0,0.2138643]
[1745317271391,0.0564349,88605.0,88595.0,0.0564406]
[1745317271591,0.1128784,88600.0,88599.0,0.2257477]
[1745317272593,0.1878784,88600.0,88599.0,0.112877]
[1745317273394,0.1878784,88600.0,88599.0,0.116877]
[1745317273891,0.1878784,88600.0,88599.0,0.113877]
[1745317274290,0.1888784,88600.0,88599.0,0.114877]
[1745317275385,0.1888784,88600.0,88599.0,0.113877]
[1745317275981,0.1878784,88600.0,88599.0,0.112877]
[1745317276292,0.1888784,88600.0,88599.0,0.113877]
[1745317276494,0.1888784,88600.0,88599.0,0.001]
[1745317276791,0.1888784,88600.0,88599.0,0.1138771]
[1745317278498,0.1888784,88600.0,88599.0,0.1148771]
[1745317278998,0.1888784,88600.0,88599.0,0.1138771]
[1745317279199,0.1898784,88600.0,88599.0,0.1138771]
[1745317280102,0.1888784,88600.0,88599.0,0.1128771]
[1745317280401,0.1898784,88600.0,88599.0,0.1138771]
[1745317282904,0.1888784,88600.0,88599.0,0.1128771]
[1745317283205,0.1898784,88600.0,88599.0,0.1138771]
[1745317283701,0.1888784,88600.0,88599.0,0.1128771]
[1745317283902,0.1898784,88600.0,88599.0,0.1138771]
[1745317284102,0.1898784,88600.0,88599.0,0.001]
[1745317284299,0.1898784,88600.0,88599.0,0.1138771]
[1745317284793,0.1898784,88600.0,88599.0,0.001]
[1745317284993,0.1898784,88600.0,88599.0,0.1138771]
[1745317285199,0.1898784,88600.0,88599.0,0.001]
[1745317285402,0.1898784,88600.0,88581.0,0.1128964]
[1745317285403,0.1129,88582.0,88581.0,0.1128964]
[1745317285701,0.1328987,88582.0,88581.0,0.146]
[1745317285905,0.1328987,88582.0,88581.0,0.0331]
[1745317286101,0.1129013,88580.0,88579.0,0.143802]
[1745317286409,0.1229013,88580.0,88579.0,0.143802]
[1745317287898,0.1239013,88580.0,88579.0,0.143802]
[1745317288093,0.011,88580.0,88577.0,0.0564522]
[1745317288308,0.1129051,88577.0,88576.0,0.0331]
[1745317288610,0.1229051,88577.0,88576.0,0.0331]
[1745317289401,0.1129064,88576.0,88575.0,8e-05]
[1745317289606,0.1129064,88576.0,88575.0,0.1129877]
[1745317289607,0.1977064,88576.0,88575.0,0.1129877]
[1745317291006,0.1987064,88576.0,88575.0,0.1129877]
[1745317291702,0.1987064,88576.0,88575.0,8e-05]
[1745317292102,0.1997064,88576.0,88575.0,0.00608]
[1745317292696,0.1997064,88576.0,88575.0,8e-05]
[1745317292899,0.1997064,88576.0,88575.0,0.1129877]
[1745317295003,0.1987064,88576.0,88575.0,0.1129877]
[1745317295307,0.1987064,88576.0,88575.0,8e-05]
[1745317297704,0.1997064,88576.0,88575.0,8e-05]
[1745317298910,0.1129153,88569.0,88568.0,0.00026]
[1745317299210,0.3449153,88569.0,88568.0,8e-05]
[1745317300308,0.3459153,88569.0,88568.0,8e-05]
[1745317300505,0.3459153,88569.0,88568.0,0.1129966]
[1745317300702,0.3459153,88569.0,88568.0,0.1139966]
[1745317301012,0.193,88569.0,88568.0,0.2139966]
[1745317301610,0.193,88569.0,88568.0,0.2766966]
[1745317302110,0.001,88569.0,88568.0,0.4686966]
[1745317302410,0.1139153,88569.0,88568.0,0.4686966]
[1745317302911,0.001,88569.0,88568.0,0.4686966]
[1745317303212,0.1139153,88569.0,88568.0,0.4686966]
[1745317304209,0.1139153,88569.0,88568.0,0.2766966]
[1745317314111,0.3059153,88569.0,88568.0,0.2766966]
[1745317316510,0.3375153,88569.0,88568.0,0.2766966]
[1745317318114,0.1455153,88569.0,88568.0,0.2766966]
[1745317318316,0.1655153,88569.0,88568.0,0.2766966]
[1745317318517,0.1979153,88569.0,88568.0,0.2766966]
[1745317319223,0.3899153,88569.0,88568.0,0.2766966]
[1745317319812,0.3899153,88569.0,88568.0,0.2139166]
[1745317320015,0.4227153,88569.0,88568.0,0.2139166]
[1745317320216,0.4227153,88569.0,88568.0,0.2139966]
[1745317320411,0.4227153,88569.0,88568.0,0.2460966]
[1745317320924,0.4227153,88569.0,88568.0,0.2782966]
[1745317324342,0.4227153,88569.0,88568.0,0.2461966]
[1745317326236,0.4227153,88569.0,88568.0,0.2139966]
[1745317327140,0.4227153,88569.0,88568.0,0.1139966]
[1745317332437,0.4227153,88569.0,88568.0,0.1139166]
[1745317332642,0.4227153,88569.0,88568.0,0.00108]
[1745317332836,0.4227153,88569.0,88568.0,0.001]
[1745317333237,0.4227153,88569.0,88568.0,0.00108]
[1745317336545,0.4227153,88569.0,88568.0,0.1139966]
[1745317337051,0.5089953,88569.0,88568.0,0.1139966]
[1745317338254,0.5089953,88569.0,88568.0,0.00108]
[1745317339147,0.5089953,88569.0,88568.0,0.1139966]
[1745317339642,0.5089953,88569.0,88568.0,0.00108]
[1745317340038,0.2258412,88567.0,88566.0,0.0564595]
[1745317340249,0.1129217,88564.0,88563.0,0.000368]
[1745317340447,0.1429217,88564.0,88563.0,0.113031]
[1745317340646,0.2077217,88564.0,88563.0,0.000108]
[1745317340848,0.2077217,88564.0,88563.0,0.113031]
[1745317341046,0.2077217,88564.0,88563.0,0.112923]
[1745317341250,0.3997217,88564.0,88563.0,0.113003]
[1745317341551,0.3997217,88564.0,88563.0,0.116003]
[1745317342146,0.4007217,88564.0,88563.0,0.116003]
[1745317348451,0.4007217,88564.0,88563.0,0.178603]
[1745317352853,0.4017217,88564.0,88563.0,0.175603]
[1745317356656,0.4007217,88564.0,88563.0,0.175603]
[1745317356962,0.4571831,88564.0,88563.0,0.112923]
[1745317357758,0.1129242,88562.0,88561.0,0.0564621]
[1745317357961,0.1429242,88562.0,88561.0,0.0564621]
[1745317358161,0.3349242,88562.0,88561.0,0.0564621]
[1745317358664,0.1129255,88561.0,88560.0,0.11309608]
[1745317358964,0.2386255,88561.0,88560.0,0.11309608]
[1745317359262,0.4306255,88561.0,88560.0,0.00016928]
[1745317359861,0.4306255,88561.0,88560.0,0.00024928]
[1745317360764,0.4316255,88561.0,88560.0,0.00024928]
[1745317360965,0.4316255,88561.0,88560.0,0.00016928]
[1745317361262,0.4316255,88561.0,88560.0,0.00024928]
[1745317365565,0.4316255,88561.0,88560.0,0.00016928]
[1745317365767,0.4316255,88561.0,88560.0,0.00024928]
[1745317366255,0.5445415,88561.0,88560.0,0.00024928]
[1745317366864,0.5445415,88561.0,88560.0,0.00016928]
[1745317367067,0.5445415,88561.0,88560.0,0.00024928]
[1745317367268,0.5445415,88561.0,88560.0,0.00016928]
[1745317367465,0.5445415,88561.0,88560.0,0.00024928]
[1745317368157,0.9053415,88561.0,88560.0,0.00024928]
[1745317368965,0.9053415,88561.0,88560.0,0.00016928]
[1745317369157,0.9053415,88561.0,88560.0,0.00024928]
[1745317371455,0.9053415,88561.0,88560.0,8e-08]
[1745317374158,0.9053415,88561.0,88560.0,8.008e-05]
[1745317374358,0.9053415,88561.0,88560.0,8e-08]
[1745317376261,0.1129434,88547.0,88546.0,0.000108]
[1745317376472,0.8094234,88547.0,88546.0,0.000108]
[1745317377064,0.1129625,88532.0,88531.0,0.0634]
[1745317377261,0.3349625,88532.0,88531.0,0.0634]
[1745317377665,0.3652625,88532.0,88531.0,0.0634]
[1745317378763,0.3652625,88532.0,88531.0,0.1763638]
[1745317378978,0.3662625,88532.0,88531.0,0.1843638]
[1745317379178,0.3662625,88532.0,88531.0,0.0714]
[1745317379374,0.3662625,88532.0,88531.0,0.0387]
[1745317379571,0.4012625,88532.0,88531.0,0.0387]
[1745317379771,0.4012625,88532.0,88531.0,0.03878]
[1745317380474,0.3672625,88532.0,88531.0,0.03078]
[1745317381471,0.37560805,88532.0,88531.0,0.03078]
[1745317382073,0.37460805,88532.0,88531.0,0.03078]
[1745317382275,0.37560805,88532.0,88531.0,0.03078]
[1745317383574,0.40750805,88532.0,88531.0,0.03078]
[1745317390790,0.76830805,88532.0,88531.0,0.03078]
[1745317391091,0.76830805,88532.0,88531.0,8e-05]
[1745317391284,0.85766805,88532.0,88531.0,8e-05]
[1745317392487,0.85766805,88532.0,88531.0,0.03178]
[1745317395891,0.85766805,88532.0,88531.0,8e-05]
[1745317397394,0.1129663,88529.0,88528.0,0.00508311]
[1745317397592,0.3729663,88529.0,88528.0,0.00508311]
[1745317398091,0.5649663,88529.0,88528.0,0.00516311]
[1745317398297,0.6289663,88529.0,88528.0,0.00516311]
[1745317398700,0.6299663,88529.0,88528.0,0.00516311]
[1745317399101,0.7193263,88529.0,88528.0,0.00516311]
[1745317399298,0.7193263,88529.0,88528.0,0.00616311]
[1745317401901,0.7223263,88529.0,88528.0,0.00516311]
[1745317402098,0.7213263,88529.0,88528.0,0.00516311]
[1745317402399,0.7243263,88529.0,88528.0,0.00516311]
[1745317402901,0.7223263,88529.0,88528.0,0.00516311]
[1745317403901,0.7213263,88529.0,88528.0,0.00516311]
[1745317405001,0.7223263,88529.0,88528.0,0.00516311]
[1745317405503,0.7193263,88529.0,88528.0,0.00516311]
[1745317405698,0.7213263,88529.0,88528.0,0.00516311]
[1745317406093,0.7223263,88529.0,88528.0,0.00516311]
[1745317408198,0.7203263,88529.0,88528.0,0.00516311]
[1745317408402,0.7223263,88529.0,88528.0,0.00516311]
[1745317411906,0.6329663,88529.0,88528.0,0.00516311]
[1745317412106,0.7213263,88529.0,88528.0,0.00516311]
[1745317413503,0.7193263,88529.0,88528.0,0.00516311]
[1745317413708,0.7203263,88529.0,88528.0,0.00516311]
[1745317417413,0.60736,88529.0,88500.0,0.156501]
[1745317417710,0.60736,88529.0,88502.0,0.00088785]
[1745317417711,0.1129995,88503.0,88502.0,0.00088785]
[1745317417902,0.9500395,88503.0,88502.0,0.00062213]
[1745317418106,1.1420395,88503.0,88502.0,0.00070213]
[1745317418405,1.1420395,88503.0,88502.0,0.00062213]
[1745317418601,0.8443395,88503.0,88502.0,0.00070213]
[1745317420008,0.8453395,88503.0,88502.0,0.00070213]
[1745317420213,0.8463395,88503.0,88502.0,0.00570213]
[1745317420611,0.8463395,88503.0,88502.0,0.00070213]
[1745317420811,0.8463395,88503.0,88502.0,0.00470213]
[1745317423117,0.6543395,88503.0,88502.0,0.00470213]
[1745317424112,0.8463395,88503.0,88502.0,0.00470213]
[1745317425120,0.6543395,88503.0,88502.0,0.00470213]
[1745317428319,0.8463395,88503.0,88502.0,0.00470213]
[1745317430515,0.8463795,88503.0,88502.0,0.00470213]
[1745317431320,0.6543795,88503.0,88502.0,0.00470213]
[1745317432720,0.6243795,88503.0,88502.0,0.00470213]
[1745317432918,0.6343795,88503.0,88502.0,0.00470213]
[1745317433114,0.5488995,88503.0,88502.0,0.19670213]
[1745317433326,0.6343795,88503.0,88502.0,0.19670213]
[1745317433522,0.6343795,88503.0,88502.0,0.23530213]
[1745317434117,0.6343795,88503.0,88502.0,0.04330213]
[1745317436518,0.2735795,88503.0,88502.0,0.04330213]
[1745317436827,0.6343795,88503.0,88502.0,0.04330213]
[1745317437628,0.6343795,88503.0,88502.0,0.03550213]
[1745317437823,0.6343795,88503.0,88502.0,0.00470213]
[1745317438220,0.8263795,88503.0,88502.0,0.00470213]
[1745317439239,0.6343795,88503.0,88502.0,0.00470213]
[1745317441224,0.8263795,88503.0,88502.0,0.00470213]
[1745317443434,0.6343795,88503.0,88502.0,0.00470213]
[1745317445237,0.8263795,88503.0,88502.0,0.00470213]
[1745317446033,0.4655795,88503.0,88502.0,0.00470213]
[1745317446240,0.8263795,88503.0,88502.0,0.00470213]
[1745317446447,0.4655795,88503.0,88502.0,0.00470213]
[1745317446640,0.8263795,88503.0,88502.0,0.00470213]
[1745317447631,0.71338,88503.0,88476.0,0.0050861]
[1745317447935,0.1130314,88478.0,88477.0,0.0382]
[1745317448134,0.3050314,88478.0,88477.0,0.03828]
[1745317448727,0.3350314,88478.0,88477.0,0.04228]
[1745317448933,0.3450314,88478.0,88477.0,0.04228]
[1745317449333,0.1130327,88477.0,88476.0,0.0050861]
[1745317449546,0.1530327,88477.0,88476.0,0.0050861]
[1745317449725,0.1830327,88477.0,88476.0,0.0050861]
[1745317450126,0.38333206,88477.0,88476.0,0.0051661]
[1745317450531,0.38433206,88477.0,88476.0,0.0051661]
[1745317451633,0.38533206,88477.0,88476.0,0.0061661]
[1745317459856,0.38533206,88477.0,88476.0,0.0060861]
[1745317460164,0.38533206,88477.0,88476.0,0.0061661]
[1745317463941,0.38533206,88477.0,88476.0,0.0060861]
[1745317464142,0.38533206,88477.0,88476.0,0.0061661]
[1745317465344,0.38433206,88477.0,88476.0,0.0061661]
[1745317465546,0.38533206,88477.0,88476.0,0.0071661]
[1745317465951,0.38533206,88477.0,88476.0,0.0070861]
[1745317466251,0.38533206,88477.0,88476.0,0.0071661]
[1745317466951,0.38533206,88477.0,88476.0,0.0070861]
[1745317467151,0.38433206,88477.0,88476.0,0.0071661]
[1745317467351,0.39033206,88477.0,88476.0,0.0071661]
[1745317468643,0.38433206,88477.0,88476.0,0.0071661]
[1745317468843,0.38933206,88477.0,88476.0,0.0071661]
[1745317469154,0.39333206,88477.0,88476.0,0.0051661]
[1745317469452,0.38833206,88477.0,88476.0,1e-07]
[1745317469845,2.69002336,88477.0,88454.0,0.0001458]
[1745317470053,0.4738608,88455.0,88454.0,0.0001458]
[1745317470248,0.7902608,88455.0,88454.0,0.0001458]
[1745317470548,0.7902608,88455.0,88450.0,0.00508759]
[1745317470549,0.1130659,88451.0,88450.0,0.00508759]
[1745317470751,0.3430659,88451.0,88450.0,0.00508759]
[1745317471838,0.3430659,88451.0,88450.0,0.00516759]
[1745317472455,0.3440659,88451.0,88450.0,0.00516759]
[1745317472659,0.3450659,88451.0,88450.0,0.00516759]
[1745317473157,0.5370659,88451.0,88450.0,0.00516759]
[1745317474454,0.5370659,88451.0,88450.0,0.00508759]
[1745317474764,0.5370659,88451.0,88450.0,0.00516759]
[1745317475258,0.5370659,88451.0,88450.0,9e-08]
[1745317475459,0.1130992,88425.0,88412.0,0.0565578]
[1745317475655,0.1230992,88425.0,88418.0,0.4173538]
[1745317475959,0.1230992,88425.0,88424.0,0.36818109]
[1745317476150,0.1230992,88425.0,88424.0,0.67336159]
[1745317476467,0.13361974,88425.0,88424.0,0.42336159]
[1745317477151,0.13361974,88425.0,88424.0,0.46176159]
[1745317478049,0.12361974,88425.0,88424.0,0.46176159]
[1745317478556,0.13361974,88425.0,88424.0,0.46176159]
[1745317479456,0.12361974,88425.0,88424.0,0.46176159]
[1745317480951,0.1130819,88439.0,88426.0,0.0565485]
[1745317481150,0.169623,88439.0,88438.0,0.1130813]
[1745317481362,0.00834476,88439.0,88438.0,0.1130813]
[1745317481546,0.17181451,88440.0,88439.0,0.1120813]
[1745317481853,0.28489451,88440.0,88439.0,0.22515329]
[1745317482053,0.28489451,88440.0,88439.0,0.51465329]
[1745317482257,0.28489451,88440.0,88439.0,0.70565329]
[1745317482446,0.18044359,88440.0,88439.0,0.45565329]
[1745317482653,0.29352359,88440.0,88439.0,0.45565329]
[1745317482850,0.18144359,88440.0,88439.0,0.45465329]
[1745317483755,0.18144359,88440.0,88439.0,0.70465329]
[1745317484151,0.00962908,88440.0,88439.0,0.70465329]
[1745317484551,0.00962908,88440.0,88439.0,0.70765329]
[1745317484850,0.01062908,88440.0,88439.0,0.45765329]
[1745317485245,0.002,88440.0,88439.0,0.45765329]
[1745317485762,0.00176605,88440.0,88439.0,0.45765329]
[1745317486562,0.11484605,88440.0,88439.0,0.45773329]
[1745317488353,0.11484605,88440.0,88439.0,0.45765329]
[1745317488554,0.11484605,88440.0,88439.0,0.45773329]
[1745317488964,0.11484605,88440.0,88439.0,0.34765199]
[1745317489166,0.11484605,88440.0,88439.0,0.26873329]
[1745317489466,0.12484605,88440.0,88439.0,0.26865329]
[1745317489664,0.12484605,88440.0,88439.0,0.26873329]
[1745317489854,0.18954605,88440.0,88439.0,0.26873329]
[1745317490663,0.18954605,88440.0,88439.0,0.1556613]
[1745317490964,0.18954605,88440.0,88439.0,0.1161613]
[1745317491968,0.18854605,88440.0,88439.0,0.1131613]
[1745317492156,0.18954605,88440.0,88439.0,0.1161613]
[1745317492357,0.18878,88440.0,88439.0,0.1161613]
[1745317492555,0.18978,88440.0,88439.0,0.1201613]
[1745317492969,0.18978,88440.0,88439.0,0.00708]
[1745317493354,0.18978,88440.0,88439.0,0.007]
[1745317493663,0.18978,88440.0,88439.0,0.00608]
[1745317494359,0.18878,88440.0,88439.0,0.00408]
[1745317494555,0.18978,88440.0,88439.0,0.00508]
[1745317494957,0.18978,88440.0,88439.0,0.005]
[1745317495253,0.18978,88440.0,88439.0,0.00508]
[1745317495457,0.18978,88440.0,88439.0,0.005]
[1745317495654,0.18978,88440.0,88439.0,0.00508]
[1745317495861,0.18878,88440.0,88439.0,0.00108]
[1745317496064,0.38178,88440.0,88439.0,0.00408]
[1745317496660,0.38178,88440.0,88439.0,0.00308]
[1745317497053,0.18978,88440.0,88439.0,0.00308]
[1745317497566,0.18978,88440.0,88439.0,0.00208]
[1745317497765,0.0442,88440.0,88439.0,0.1151613]
[1745317498061,0.14728,88440.0,88439.0,0.1151613]
[1745317498264,0.14728,88440.0,88439.0,0.3071613]
[1745317498456,0.17828,88440.0,88439.0,0.3070813]
[1745317498656,0.14728,88440.0,88439.0,0.3070813]
[1745317498977,0.17828,88440.0,88439.0,0.3071613]
[1745317500359,0.17728,88440.0,88439.0,0.3071613]
[1745317500558,0.17828,88440.0,88439.0,0.3071613]
[1745317501859,0.17828,88440.0,88439.0,0.3387613]
[1745317502060,0.17828,88440.0,88439.0,0.3465613]
[1745317502968,0.14728,88440.0,88439.0,0.3465613]
[1745317503765,0.14728,88440.0,88439.0,0.45963329]
[1745317504561,0.17788,88440.0,88439.0,0.45963329]
[1745317505075,0.0342,88440.0,88439.0,0.45963329]
[1745317505273,0.0342,88440.0,88439.0,0.92043329]
[1745317505672,0.002,88440.0,88439.0,0.92043329]
[1745317505977,0.0303,88447.0,88446.0,0.1130723]
[1745317506162,0.0303,88447.0,88446.0,0.3050723]
[1745317506368,0.0303,88447.0,88446.0,0.4181363]
[1745317506566,0.03859079,88447.0,88446.0,0.3050723]
[1745317506770,0.21256189,88447.0,88446.0,0.3050723]
[1745317507165,0.21456189,88447.0,88446.0,0.3051523]
[1745317507476,0.21556189,88447.0,88446.0,0.3061523]
[1745317508375,0.21456189,88447.0,88446.0,0.001]
[1745317508677,0.1131837,88359.0,88358.0,0.30322558]
[1745317508876,0.3608,88418.0,88362.0,0.54238033]
[1745317508877,0.3608,88366.0,88362.0,0.54238033]
[1745317509172,0.3608,88377.0,88374.0,0.1131636]
[1745317509374,0.3608,88377.0,88365.0,0.3608]
[1745317509375,0.3608,88377.0,88376.0,0.76851033]
[1745317509673,0.3608,88377.0,88376.0,0.97535223]
[1745317509879,0.4739606,88377.0,88376.0,1.18850423]
[1745317510173,0.4739606,88377.0,88376.0,1.16734233]
[1745317510373,0.4739606,88377.0,88376.0,1.69058423]
[1745317510577,0.4739606,88377.0,88376.0,1.17523223]
[1745317510770,0.4739606,88377.0,88376.0,1.44523223]
[1745317510968,0.4749606,88377.0,88376.0,1.17715223]
[1745317511275,0.4759606,88377.0,88376.0,1.17723223]
[1745317511478,0.4759606,88377.0,88376.0,1.17715223]
[1745317511665,0.4759606,88377.0,88376.0,1.17723223]
[1745317512362,0.5415606,88377.0,88376.0,1.17723223]
[1745317513667,0.5405606,88377.0,88376.0,1.17523223]
[1745317513967,0.5415606,88377.0,88376.0,1.17523223]
[1745317514163,0.5415606,88377.0,88376.0,0.96839033]
[1745317514368,0.5415606,88377.0,88376.0,1.08147223]
[1745317514579,0.5415606,88377.0,88376.0,0.96839033]
[1745317514877,0.5415606,88377.0,88376.0,1.08155223]
[1745317515174,0.5415606,88377.0,88376.0,0.96059033]
[1745317515363,0.5515606,88377.0,88376.0,0.96051033]
[1745317515567,0.5515606,88377.0,88376.0,0.96059033]
[1745317516273,0.5515606,88377.0,88376.0,0.76859033]
[1745317516469,0.5505606,88377.0,88376.0,0.76859033]
[1745317516675,0.5515606,88377.0,88376.0,0.76859033]
[1745317517066,0.5505606,88377.0,88376.0,0.76859033]
[1745317517266,0.5515606,88377.0,88376.0,0.76859033]
[1745317517468,0.5190606,88377.0,88376.0,0.76859033]
[1745317517768,0.5190606,88377.0,88376.0,0.88175223]
[1745317517977,0.5180606,88377.0,88376.0,0.98175223]
[1745317518175,0.5190606,88377.0,88376.0,1.17375223]
[1745317518879,0.5190606,88377.0,88376.0,1.20525223]
[1745317520577,0.5190606,88377.0,88376.0,1.09209033]
[1745317521080,0.5190606,88377.0,88376.0,0.29]
[1745317521279,0.1131696,88370.0,88369.0,1e-07]
[1745317521470,0.5339696,88370.0,88369.0,1e-07]
[1745317521878,0.1131978,88348.0,88347.0,0.0321]
[1745317522081,0.113199,88347.0,88346.0,0.00509358]
[1745317522271,0.153899,88347.0,88346.0,0.00509358]
[1745317522474,0.153899,88347.0,88346.0,0.23122358]
[1745317522670,0.153899,88347.0,88346.0,0.23130358]
[1745317522880,0.153899,88347.0,88346.0,0.23122358]
[1745317523182,0.153899,88347.0,88346.0,0.00517358]
[1745317523384,0.184199,88347.0,88346.0,0.00509358]
[1745317523684,0.186199,88347.0,88346.0,0.00517358]
[1745317523879,0.188199,88347.0,88346.0,0.00517358]
[1745317524282,0.960891,88347.0,88346.0,8e-08]
[1745317524479,0.1132196,88331.0,88330.0,0.029]
[1745317524675,0.8448196,88331.0,88330.0,0.029]
[1745317524876,0.8448196,88331.0,88330.0,0.25513]
[1745317525271,0.9079196,88331.0,88330.0,0.221]
[1745317525676,0.9079196,88331.0,88330.0,0.22108]
[1745317526271,1.27313161,88331.0,88330.0,0.02908]
[1745317526470,1.27313161,88331.0,88330.0,0.029]
[1745317526678,1.27113161,88331.0,88330.0,0.02908]
[1745317526981,0.9936796,88331.0,88330.0,0.1423008]
[1745317527182,0.9936796,88331.0,88330.0,0.5604308]
[1745317527183,0.9009196,88331.0,88330.0,0.5604308]
[1745317527382,0.8999196,88331.0,88330.0,1.10281113]
[1745317527787,0.8999196,88331.0,88330.0,1.13321113]
[1745317528288,0.8999196,88331.0,88330.0,1.01999033]
[1745317529081,0.8999196,88331.0,88330.0,1.05269033]
[1745317529473,0.8368196,88331.0,88330.0,1.16591113]
[1745317529875,0.7236,88331.0,88330.0,1.16591113]
[1745317530080,0.7236,88331.0,88330.0,1.26591113]
[1745317531079,0.8368196,88331.0,88330.0,1.26591113]
[1745317531487,0.8368196,88331.0,88330.0,1.15269033]
[1745317531873,0.8368196,88331.0,88330.0,1.05269033]
[1745317532074,0.8368196,88331.0,88330.0,1.01999033]
[1745317532279,0.8368196,88331.0,88330.0,0.47761]
[1745317532483,0.8368196,88331.0,88330.0,0.47753]
[1745317532675,0.8368196,88331.0,88330.0,0.25148]
[1745317532874,0.8368196,88331.0,88330.0,0.22108]
[1745317533081,1.25203161,88331.0,88330.0,0.22108]
[1745317533796,1.03363161,88331.0,88330.0,0.22108]
[1745317534290,1.03363161,88331.0,88330.0,0.1678163]
[1745317534488,0.1132439,88312.0,88311.0,0.000108]
[1745317534787,0.4840439,88312.0,88311.0,0.000108]
[1745317534989,0.113258,88301.0,88300.0,0.2132593]
[1745317535179,0.474058,88301.0,88300.0,0.4052593]
[1745317535376,0.474058,88301.0,88300.0,1.17376963]
[1745317536078,0.474058,88301.0,88300.0,1.06051033]
[1745317536581,0.476058,88301.0,88300.0,1.09189033]